[Event "*** SCC Grand Prix: Titled Tuesday Blitz"]
[Site "Chess.com"]
[Date "2020.06.02"]
[Round "7"]
[White "Shtembuliak"]
[Black "Virgo15"]
[Result "1-0"]
[WhiteElo "2886"]
[BlackElo "2752"]
[TimeControl "180+1"]
[EndTime "11:20:00 PDT"]
[Termination "Shtembuliak won on time"]

1. c4 {[%clk 0:03:00.9]} 1... e6 {[%clk 0:02:59.4]} 2. Nc3 {[%clk 0:03:00.9]}
2... d5 {[%clk 0:02:59.3]} 3. d4 {[%clk 0:03:01.2]} 3... c6 {[%clk 0:02:58.7]}
4. e4 {[%clk 0:03:01.3]} 4... Bb4 {[%clk 0:02:55.6]} 5. Bd3 {[%clk 0:02:54.5]}
5... dxe4 {[%clk 0:02:52.3]} 6. Bxe4 {[%clk 0:02:54.3]} 6... Nf6 {[%clk
0:02:52.7]} 7. Bc2 {[%clk 0:02:53.1]} 7... c5 {[%clk 0:02:50.9]} 8. Ne2 {[%clk
0:02:49.6]} 8... Nc6 {[%clk 0:02:50.5]} 9. dxc5 {[%clk 0:02:40.3]} 9... Qxd1+
{[%clk 0:02:48.8]} 10. Bxd1 {[%clk 0:02:41.2]} 10... Bxc5 {[%clk 0:02:45.8]} 11.
Ng3 {[%clk 0:02:38]} 11... O-O {[%clk 0:02:44.2]} 12. Nge4 {[%clk 0:02:35.9]}
12... Nxe4 {[%clk 0:02:43.6]} 13. Nxe4 {[%clk 0:02:35.9]} 13... Be7 {[%clk
0:02:41.6]} 14. Be3 {[%clk 0:02:27]} 14... b6 {[%clk 0:02:41.3]} 15. b3 {[%clk
0:02:20.2]} 15... Bb4+ {[%clk 0:02:36.5]} 16. Bd2 {[%clk 0:02:15.7]} 16... Bb7
{[%clk 0:02:36.6]} 17. f3 {[%clk 0:02:11.2]} 17... Rad8 {[%clk 0:02:32.1]} 18.
Bxb4 {[%clk 0:02:09.9]} 18... Nxb4 {[%clk 0:02:32]} 19. Nf2 {[%clk 0:02:10.5]}
19... Rd4 {[%clk 0:02:27]} 20. a3 {[%clk 0:02:10.2]} 20... Na6 {[%clk
0:02:22.1]} 21. Bc2 {[%clk 0:02:06]} 21... Rfd8 {[%clk 0:02:18.6]} 22. Rd1
{[%clk 0:02:06.2]} 22... Rxd1+ {[%clk 0:02:11.9]} 23. Nxd1 {[%clk 0:02:07.1]}
23... Nc5 {[%clk 0:02:02.3]} 24. Ke2 {[%clk 0:02:06.3]} 24... f5 {[%clk
0:01:52.2]} 25. Nc3 {[%clk 0:02:06.2]} 25... Kf7 {[%clk 0:01:51.8]} 26. b4
{[%clk 0:01:57.7]} 26... Na6 {[%clk 0:01:50.2]} 27. Nb5 {[%clk 0:01:53.6]} 27...
Bc6 {[%clk 0:01:22.6]} 28. Nxa7 {[%clk 0:01:52]} 28... Be8 {[%clk 0:01:22.9]}
29. Rd1 {[%clk 0:01:44.8]} 29... Ke7 {[%clk 0:00:59.2]} 30. Rxd8 {[%clk
0:01:15.7]} 30... Kxd8 {[%clk 0:00:59.2]} 31. Bd3 {[%clk 0:01:16.3]} 31... Kc7
{[%clk 0:00:23.9]} 32. Nb5+ {[%clk 0:01:14.9]} 32... Bxb5 {[%clk 0:00:22.9]} 33.
cxb5 {[%clk 0:01:15.8]} 33... Nb8 {[%clk 0:00:23]} 34. f4 {[%clk 0:01:14.8]}
34... Nd7 {[%clk 0:00:15]} 35. Ke3 {[%clk 0:01:14.4]} 35... Nf6 {[%clk
0:00:14.5]} 36. Bc4 {[%clk 0:01:11.8]} 36... Kd6 {[%clk 0:00:13.1]} 37. Kd4
{[%clk 0:01:12.2]} 37... Nd7 {[%clk 0:00:08.4]} 38. a4 {[%clk 0:01:10.2]} 38...
e5+ {[%clk 0:00:01.9]} 39. fxe5+ {[%clk 0:01:11.1]} 39... Nxe5 {[%clk
0:00:02.5]} 40. a5 {[%clk 0:01:11.7]} 40... bxa5 {[%clk 0:00:02.9]} 41. bxa5
{[%clk 0:01:12.1]} 41... Nxc4 {[%clk 0:00:02.5]} 42. Kxc4 {[%clk 0:01:12.4]}
42... g5 {[%clk 0:00:03.1]} 43. Kd4 {[%clk 0:01:12.8]} 43... h5 {[%clk
0:00:02.9]} 44. a6 {[%clk 0:01:13.2]} 44... Kc7 {[%clk 0:00:03.2]} 45. Ke5
{[%clk 0:01:11.8]} 45... f4 {[%clk 0:00:03.4]} 46. Kf5 {[%clk 0:01:11]} 46... h4
{[%clk 0:00:01.9]} 47. h3 {[%clk 0:01:10.5]} 47... f3 {[%clk 0:00:01.8]} 48.
gxf3 {[%clk 0:01:10.5]} 48... g4 {[%clk 0:00:02.3]} 49. Kxg4 {[%clk 0:01:11.1]}
49... Kb6 {[%clk 0:00:02.3]} 50. Kxh4 {[%clk 0:01:12]} 1-0

[Event "*** SCC Grand Prix: Titled Tuesday Blitz"]
[Site "Chess.com"]
[Date "2020.06.02"]
[Round "7"]
[White "temus_galaktionov"]
[Black "TregubovP"]
[Result "1-0"]
[WhiteElo "2731"]
[BlackElo "2564"]
[TimeControl "180+1"]
[EndTime "11:20:00 PDT"]
[Termination "temus_galaktionov won by resignation"]

1. d4 {[%clk 0:03:00.9]} 1... Nf6 {[%clk 0:02:58.1]} 2. Nf3 {[%clk 0:03:01.4]}
2... e6 {[%clk 0:02:57.8]} 3. c4 {[%clk 0:03:02.1]} 3... Bb4+ {[%clk 0:02:57.7]}
4. Nbd2 {[%clk 0:03:02.1]} 4... O-O {[%clk 0:02:56.4]} 5. a3 {[%clk 0:03:01.8]}
5... Be7 {[%clk 0:02:56.9]} 6. e3 {[%clk 0:03:01.9]} 6... d6 {[%clk 0:02:57.5]}
7. b4 {[%clk 0:03:01.8]} 7... Nfd7 {[%clk 0:02:51.7]} 8. Bb2 {[%clk 0:03:00.4]}
8... a5 {[%clk 0:02:48.5]} 9. Bd3 {[%clk 0:02:58.7]} 9... axb4 {[%clk
0:02:39.9]} 10. axb4 {[%clk 0:02:59.6]} 10... Rxa1 {[%clk 0:02:39.6]} 11. Qxa1
{[%clk 0:02:59.7]} 11... e5 {[%clk 0:02:29.7]} 12. O-O {[%clk 0:02:57.6]} 12...
exd4 {[%clk 0:02:24.6]} 13. exd4 {[%clk 0:02:58.5]} 13... Re8 {[%clk 0:02:20.9]}
14. b5 {[%clk 0:02:43.1]} 14... Bf8 {[%clk 0:02:03.2]} 15. Qa7 {[%clk
0:02:38.2]} 15... c6 {[%clk 0:02:02]} 16. Ra1 {[%clk 0:02:33.7]} 16... Qb6
{[%clk 0:01:54.9]} 17. Qa8 {[%clk 0:02:29.6]} 17... Qc7 {[%clk 0:01:46.8]} 18.
Bc3 {[%clk 0:02:23.8]} 18... cxb5 {[%clk 0:01:39.8]} 19. Rc1 {[%clk 0:02:01.8]}
19... b4 {[%clk 0:01:37.4]} 20. Bxb4 {[%clk 0:01:55.1]} 20... Na6 {[%clk
0:01:37.4]} 21. Ba3 {[%clk 0:01:51.6]} 21... Nb6 {[%clk 0:01:35.8]} 22. Qa7
{[%clk 0:01:51.3]} 22... Bg4 {[%clk 0:01:34]} 23. c5 {[%clk 0:01:51.3]} 23...
dxc5 {[%clk 0:01:34.3]} 24. Bxa6 {[%clk 0:01:50]} 24... Ra8 {[%clk 0:01:30.9]}
25. Qxb7 {[%clk 0:01:49.1]} 25... Qxb7 {[%clk 0:01:31.1]} 26. Bxb7 {[%clk
0:01:49.1]} 26... Rxa3 {[%clk 0:01:31.6]} 27. dxc5 {[%clk 0:01:49.6]} 27... Na8
{[%clk 0:01:13.7]} 28. Nc4 {[%clk 0:01:31]} 28... Ra7 {[%clk 0:01:11.6]} 29. c6
{[%clk 0:01:11.8]} 29... Nc7 {[%clk 0:01:07.2]} 30. Nfe5 {[%clk 0:01:11.4]}
30... Be6 {[%clk 0:01:04.7]} 31. h3 {[%clk 0:01:09.6]} 31... f6 {[%clk
0:01:03.8]} 32. Nd3 {[%clk 0:01:07.3]} 32... Kf7 {[%clk 0:00:58.1]} 33. Ne3
{[%clk 0:01:04.3]} 33... Bd6 {[%clk 0:00:53.4]} 34. Nc5 {[%clk 0:01:03.6]} 34...
Ra2 {[%clk 0:00:41.8]} 35. Nxe6 {[%clk 0:00:57]} 35... Nxe6 {[%clk 0:00:41.6]}
36. Bc8 {[%clk 0:00:56.9]} 36... Nd4 {[%clk 0:00:37.4]} 37. Rd1 {[%clk
0:00:51.4]} 37... Be5 {[%clk 0:00:32]} 38. c7 {[%clk 0:00:38.8]} 38... Kf8
{[%clk 0:00:15.5]} 39. Be6 {[%clk 0:00:34.9]} 39... Ne2+ {[%clk 0:00:15]} 40.
Kf1 {[%clk 0:00:34.5]} 40... Bxc7 {[%clk 0:00:15.6]} 41. Bxa2 {[%clk 0:00:33.4]}
1-0

[Event "*** SCC Grand Prix: Titled Tuesday Blitz"]
[Site "Chess.com"]
[Date "2020.06.02"]
[Round "7"]
[White "SHIVACalypso"]
[Black "SoltaniciR"]
[Result "1-0"]
[WhiteElo "2323"]
[BlackElo "2441"]
[TimeControl "180+1"]
[EndTime "11:20:00 PDT"]
[Termination "SHIVACalypso won by resignation"]

1. Nf3 {[%clk 0:03:00.9]} 1... c5 {[%clk 0:02:59.7]} 2. c4 {[%clk 0:03:01.4]}
2... Nf6 {[%clk 0:02:58.8]} 3. g3 {[%clk 0:03:01.9]} 3... b6 {[%clk 0:02:58.3]}
4. Bg2 {[%clk 0:03:02.1]} 4... Bb7 {[%clk 0:02:58.8]} 5. O-O {[%clk 0:03:02.2]}
5... e6 {[%clk 0:02:59]} 6. Nc3 {[%clk 0:03:02.2]} 6... a6 {[%clk 0:02:59.2]} 7.
d4 {[%clk 0:02:59.7]} 7... cxd4 {[%clk 0:02:59.1]} 8. Qxd4 {[%clk 0:03:00]} 8...
d6 {[%clk 0:02:59.2]} 9. Rd1 {[%clk 0:02:58.8]} 9... Nbd7 {[%clk 0:02:59.1]} 10.
b3 {[%clk 0:02:56.8]} 10... Be7 {[%clk 0:02:54.3]} 11. Ba3 {[%clk 0:02:39.3]}
11... Nc5 {[%clk 0:02:53.8]} 12. b4 {[%clk 0:02:32.7]} 12... Ncd7 {[%clk
0:02:51.8]} 13. Rac1 {[%clk 0:02:14.3]} 13... O-O {[%clk 0:02:50]} 14. Ng5
{[%clk 0:02:03]} 14... Bxg2 {[%clk 0:02:48.9]} 15. Kxg2 {[%clk 0:02:03.9]} 15...
Qc7 {[%clk 0:02:46.3]} 16. Nge4 {[%clk 0:02:02.4]} 16... Rfd8 {[%clk 0:02:06.9]}
17. Nxd6 {[%clk 0:01:52.7]} 17... Nc5 {[%clk 0:02:02.3]} 18. bxc5 {[%clk
0:01:50.4]} 18... bxc5 {[%clk 0:02:02.4]} 19. Qxc5 {[%clk 0:01:47.4]} 19... Qd7
{[%clk 0:01:38.8]} 20. Kg1 {[%clk 0:01:19.7]} 20... Ne8 {[%clk 0:01:20.1]} 21.
Nce4 {[%clk 0:01:05.7]} 21... f5 {[%clk 0:01:16.9]} 22. Qe5 {[%clk 0:00:38.7]}
22... fxe4 {[%clk 0:01:14.4]} 23. c5 {[%clk 0:00:38.9]} 23... Bxd6 {[%clk
0:00:36.1]} 24. cxd6 {[%clk 0:00:36.1]} 24... Rac8 {[%clk 0:00:18.4]} 25. Rxc8
{[%clk 0:00:35]} 25... Rxc8 {[%clk 0:00:18.2]} 26. Qxe4 {[%clk 0:00:34.5]} 26...
Nf6 {[%clk 0:00:17.4]} 27. Qe5 {[%clk 0:00:29.4]} 27... Re8 {[%clk 0:00:11]} 28.
Qa5 {[%clk 0:00:28.2]} 28... Qb7 {[%clk 0:00:08.1]} 29. Qc7 {[%clk 0:00:24.9]}
29... Qe4 {[%clk 0:00:05.1]} 30. d7 {[%clk 0:00:23.9]} 30... Nxd7 {[%clk
0:00:04.8]} 31. Qxd7 {[%clk 0:00:23.3]} 31... Rf8 {[%clk 0:00:05.1]} 32. Bxf8
{[%clk 0:00:20.9]} 1-0

[Event "*** SCC Grand Prix: Titled Tuesday Blitz"]
[Site "Chess.com"]
[Date "2020.06.02"]
[Round "7"]
[White "kushagramohan"]
[Black "Zufi1811"]
[Result "1-0"]
[WhiteElo "2639"]
[BlackElo "2456"]
[TimeControl "180+1"]
[EndTime "11:20:01 PDT"]
[Termination "kushagramohan won by resignation"]

1. e4 {[%clk 0:03:00.9]} 1... c5 {[%clk 0:02:58.4]} 2. Nf3 {[%clk 0:03:00.8]}
2... d6 {[%clk 0:02:57.8]} 3. d4 {[%clk 0:03:00.8]} 3... cxd4 {[%clk 0:02:57.1]}
4. Nxd4 {[%clk 0:03:01.7]} 4... Nf6 {[%clk 0:02:57.2]} 5. Nc3 {[%clk 0:03:02]}
5... a6 {[%clk 0:02:56.7]} 6. f3 {[%clk 0:03:02.4]} 6... e5 {[%clk 0:02:55.5]}
7. Nb3 {[%clk 0:03:02.9]} 7... Be6 {[%clk 0:02:55.3]} 8. Be3 {[%clk 0:03:02.9]}
8... h5 {[%clk 0:02:55.3]} 9. Nd5 {[%clk 0:03:02.4]} 9... Bxd5 {[%clk
0:02:51.9]} 10. exd5 {[%clk 0:03:03.3]} 10... Nbd7 {[%clk 0:02:50.4]} 11. Be2
{[%clk 0:03:03.8]} 11... g6 {[%clk 0:02:49.2]} 12. Qd2 {[%clk 0:03:04.2]} 12...
a5 {[%clk 0:02:47.7]} 13. a4 {[%clk 0:03:03.3]} 13... Bg7 {[%clk 0:02:45.4]} 14.
O-O {[%clk 0:03:03]} 14... O-O {[%clk 0:02:45.6]} 15. c4 {[%clk 0:03:03.3]}
15... b6 {[%clk 0:02:43.9]} 16. Rad1 {[%clk 0:03:00.1]} 16... Nc5 {[%clk
0:02:43.7]} 17. Nxc5 {[%clk 0:02:57.7]} 17... bxc5 {[%clk 0:02:44.6]} 18. Qc2
{[%clk 0:02:52.9]} 18... Re8 {[%clk 0:02:16.8]} 19. Bd3 {[%clk 0:02:46.4]} 19...
Rb8 {[%clk 0:02:11]} 20. Bd2 {[%clk 0:02:43.2]} 20... e4 {[%clk 0:02:03]} 21.
fxe4 {[%clk 0:02:43.1]} 21... Ng4 {[%clk 0:02:00.7]} 22. h3 {[%clk 0:02:36.4]}
22... Rxb2 {[%clk 0:01:52.6]} 23. Qc1 {[%clk 0:02:34.8]} 23... Bd4+ {[%clk
0:01:41.7]} 24. Kh1 {[%clk 0:02:34.2]} 24... Qh4 {[%clk 0:01:27]} 25. Rf3 {[%clk
0:01:32.9]} 25... Nf2+ {[%clk 0:01:20.8]} 26. Kh2 {[%clk 0:01:28.8]} 26... Nxe4
{[%clk 0:01:06.9]} 27. Bf4 {[%clk 0:01:15.6]} 27... g5 {[%clk 0:00:51.7]} 28.
Bxe4 {[%clk 0:01:09.9]} 28... Rxe4 {[%clk 0:00:43.2]} 29. Bg3 {[%clk 0:00:43.4]}
29... Rxg2+ {[%clk 0:00:34.2]} 30. Kxg2 {[%clk 0:00:42.4]} 30... Re2+ {[%clk
0:00:34.8]} 31. Kf1 {[%clk 0:00:42.7]} 31... Qxh3+ {[%clk 0:00:14.3]} 32. Kxe2
{[%clk 0:00:41.8]} 32... Qg2+ {[%clk 0:00:15.2]} 33. Bf2 {[%clk 0:00:40]} 33...
g4 {[%clk 0:00:14.2]} 34. Qg5+ {[%clk 0:00:39.7]} 34... Kf8 {[%clk 0:00:14.2]}
35. Qf5 {[%clk 0:00:31.6]} 35... gxf3+ {[%clk 0:00:11.2]} 36. Qxf3 {[%clk
0:00:31.8]} 1-0

[Event "*** SCC Grand Prix: Titled Tuesday Blitz"]
[Site "Chess.com"]
[Date "2020.06.02"]
[Round "7"]
[White "BJthechessgod"]
[Black "Dmitry_Konenkin"]
[Result "0-1"]
[WhiteElo "2069"]
[BlackElo "2300"]
[TimeControl "180+1"]
[EndTime "11:20:01 PDT"]
[Termination "Dmitry_Konenkin won on time"]

1. e4 {[%clk 0:03:00.9]} 1... d6 {[%clk 0:02:59.8]} 2. d4 {[%clk 0:03:00]} 2...
Nf6 {[%clk 0:03:00.1]} 3. Nc3 {[%clk 0:02:59.7]} 3... e5 {[%clk 0:03:00.6]} 4.
Nf3 {[%clk 0:02:54.8]} 4... Nbd7 {[%clk 0:03:00.2]} 5. Bc4 {[%clk 0:02:53]} 5...
Be7 {[%clk 0:03:00.7]} 6. O-O {[%clk 0:02:50.8]} 6... O-O {[%clk 0:03:01.3]} 7.
Be3 {[%clk 0:02:46.8]} 7... c6 {[%clk 0:03:01.3]} 8. h3 {[%clk 0:02:45.8]} 8...
b5 {[%clk 0:03:00.5]} 9. Bd3 {[%clk 0:02:39.1]} 9... a6 {[%clk 0:02:55.2]} 10.
a4 {[%clk 0:02:22.9]} 10... Bb7 {[%clk 0:02:52.8]} 11. axb5 {[%clk 0:02:20.2]}
11... cxb5 {[%clk 0:02:50.7]} 12. d5 {[%clk 0:02:19.3]} 12... Qc7 {[%clk
0:02:37.5]} 13. Nh4 {[%clk 0:02:12.1]} 13... g6 {[%clk 0:02:30.3]} 14. Bh6
{[%clk 0:01:33.4]} 14... Rfc8 {[%clk 0:02:29.8]} 15. Qd2 {[%clk 0:01:09.3]}
15... Nxe4 {[%clk 0:02:05.4]} 16. Nxe4 {[%clk 0:01:03.7]} 16... Bxh4 {[%clk
0:02:05.9]} 17. Bg5 {[%clk 0:00:41.5]} 17... Bxg5 {[%clk 0:02:01.7]} 18. Qxg5
{[%clk 0:00:42.4]} 18... Qd8 {[%clk 0:01:46.8]} 19. Qh6 {[%clk 0:00:18.1]} 19...
Qf8 {[%clk 0:01:33.1]} 20. Qh4 {[%clk 0:00:14.2]} 20... f6 {[%clk 0:01:13.1]}
21. f4 {[%clk 0:00:13.3]} 21... f5 {[%clk 0:00:42.5]} 22. fxe5 {[%clk
0:00:10.7]} 22... dxe5 {[%clk 0:00:38.3]} 23. Ng5 {[%clk 0:00:10.7]} 23... Qe7
{[%clk 0:00:38.2]} 24. d6 {[%clk 0:00:07]} 24... Qg7 {[%clk 0:00:37.3]} 25. Ne6
{[%clk 0:00:06.7]} 25... Qf6 {[%clk 0:00:35.5]} 26. Qxf6 {[%clk 0:00:05.8]}
26... Nxf6 {[%clk 0:00:36.4]} 27. g4 {[%clk 0:00:03.3]} 27... f4 {[%clk
0:00:31.6]} 28. g5 {[%clk 0:00:03.2]} 28... Nd7 {[%clk 0:00:30.6]} 29. h4 {[%clk
0:00:02]} 29... Nc5 {[%clk 0:00:23.2]} 30. Nc7 {[%clk 0:00:02.3]} 30... Nxd3
{[%clk 0:00:20.2]} 31. Nxa8 {[%clk 0:00:01.5]} 31... Bxa8 {[%clk 0:00:17.9]} 0-1

[Event "*** SCC Grand Prix: Titled Tuesday Blitz"]
[Site "Chess.com"]
[Date "2020.06.02"]
[Round "7"]
[White "FairChess_on_YouTube"]
[Black "Vlad_Lukiianchuk"]
[Result "1-0"]
[WhiteElo "3000"]
[BlackElo "2586"]
[TimeControl "180+1"]
[EndTime "11:20:03 PDT"]
[Termination "FairChess_on_YouTube won by checkmate"]

1. e4 {[%clk 0:03:00.9]} 1... e5 {[%clk 0:02:59.8]} 2. Nf3 {[%clk 0:03:00.9]}
2... Nc6 {[%clk 0:03:00.1]} 3. Bb5 {[%clk 0:03:01.2]} 3... a6 {[%clk 0:03:00.2]}
4. Ba4 {[%clk 0:03:01.5]} 4... Nf6 {[%clk 0:03:00.1]} 5. O-O {[%clk 0:03:01.8]}
5... Be7 {[%clk 0:02:59.5]} 6. Re1 {[%clk 0:02:59.7]} 6... b5 {[%clk 0:02:58.6]}
7. Bb3 {[%clk 0:03:00]} 7... d6 {[%clk 0:02:59.2]} 8. c3 {[%clk 0:02:58.6]} 8...
O-O {[%clk 0:02:58.9]} 9. h3 {[%clk 0:02:56.7]} 9... Nb8 {[%clk 0:02:58]} 10. d4
{[%clk 0:02:55.7]} 10... Nbd7 {[%clk 0:02:58.5]} 11. Nbd2 {[%clk 0:02:55.3]}
11... Bb7 {[%clk 0:02:58.4]} 12. Bc2 {[%clk 0:02:55.3]} 12... Re8 {[%clk
0:02:58.5]} 13. Nf1 {[%clk 0:02:55.3]} 13... Bf8 {[%clk 0:02:58.4]} 14. Ng3
{[%clk 0:02:55]} 14... g6 {[%clk 0:02:58]} 15. a4 {[%clk 0:02:54.7]} 15... c5
{[%clk 0:02:57]} 16. d5 {[%clk 0:02:48.8]} 16... c4 {[%clk 0:02:56.8]} 17. Be3
{[%clk 0:02:45.2]} 17... Nc5 {[%clk 0:02:42.5]} 18. Nd2 {[%clk 0:02:45]} 18...
Nfd7 {[%clk 0:02:40.2]} 19. Ra3 {[%clk 0:02:42.8]} 19... Nb6 {[%clk 0:02:28.9]}
20. Bxc5 {[%clk 0:02:41.3]} 20... dxc5 {[%clk 0:02:28.9]} 21. Ngf1 {[%clk
0:02:39.2]} 21... b4 {[%clk 0:01:34.3]} 22. Ra1 {[%clk 0:02:31.9]} 22... b3
{[%clk 0:01:34.4]} 23. Bb1 {[%clk 0:02:31.8]} 23... a5 {[%clk 0:01:34.5]} 24.
Ne3 {[%clk 0:02:31.3]} 24... Ba6 {[%clk 0:01:34.1]} 25. Qe2 {[%clk 0:02:27.6]}
25... Bh6 {[%clk 0:01:33.6]} 26. Ng4 {[%clk 0:02:27.7]} 26... Bg7 {[%clk
0:01:29.7]} 27. Ne3 {[%clk 0:02:27.6]} 27... Bh6 {[%clk 0:01:29.3]} 28. Ng4
{[%clk 0:02:14.1]} 28... Bxd2 {[%clk 0:01:14.9]} 29. Qxd2 {[%clk 0:02:13.8]}
29... h5 {[%clk 0:01:01.7]} 30. Nh2 {[%clk 0:02:03]} 30... Qd7 {[%clk
0:00:54.5]} 31. Qh6 {[%clk 0:02:00.9]} 31... Nxa4 {[%clk 0:00:38.6]} 32. Rxa4
{[%clk 0:01:53.3]} 32... Qxa4 {[%clk 0:00:37]} 33. f4 {[%clk 0:01:53.8]} 33...
exf4 {[%clk 0:00:31.6]} 34. Nf3 {[%clk 0:01:53.2]} 34... Qd7 {[%clk 0:00:27.9]}
35. e5 {[%clk 0:01:50.3]} 35... f6 {[%clk 0:00:20.3]} 36. Bxg6 {[%clk
0:01:44.2]} 36... Re7 {[%clk 0:00:15.5]} 37. d6 {[%clk 0:01:22.6]} 37... Re6
{[%clk 0:00:10]} 38. Bf5 {[%clk 0:01:15.3]} 38... Rae8 {[%clk 0:00:10.2]} 39.
Kh2 {[%clk 0:00:52.9]} 39... a4 {[%clk 0:00:07.6]} 40. exf6 {[%clk 0:00:50.7]}
40... Qf7 {[%clk 0:00:03.5]} 41. Rxe6 {[%clk 0:00:48.6]} 41... Rxe6 {[%clk
0:00:03.6]} 42. Bxe6 {[%clk 0:00:48.7]} 42... Qxe6 {[%clk 0:00:03.9]} 43. Qg7#
{[%clk 0:00:48.8]} 1-0

[Event "*** SCC Grand Prix: Titled Tuesday Blitz"]
[Site "Chess.com"]
[Date "2020.06.02"]
[Round "7"]
[White "francyIM"]
[Black "dalmatinac101"]
[Result "1/2-1/2"]
[WhiteElo "2672"]
[BlackElo "2852"]
[TimeControl "180+1"]
[EndTime "11:20:03 PDT"]
[Termination "Game drawn - insufficient material"]

1. d4 {[%clk 0:03:00.9]} 1... d6 {[%clk 0:03:00.9]} 2. Nf3 {[%clk 0:03:00.4]}
2... g6 {[%clk 0:03:01]} 3. g3 {[%clk 0:03:00.6]} 3... Nf6 {[%clk 0:03:00.7]} 4.
Bg2 {[%clk 0:03:01.5]} 4... c6 {[%clk 0:03:00.4]} 5. O-O {[%clk 0:03:02.4]} 5...
Bg7 {[%clk 0:03:01]} 6. c4 {[%clk 0:03:02.9]} 6... Bf5 {[%clk 0:03:01.5]} 7. Nc3
{[%clk 0:03:01.5]} 7... Ne4 {[%clk 0:03:01.5]} 8. Qb3 {[%clk 0:03:01]} 8... Nxc3
{[%clk 0:03:01]} 9. bxc3 {[%clk 0:02:55.7]} 9... Qb6 {[%clk 0:02:53.2]} 10. Ba3
{[%clk 0:02:46.2]} 10... O-O {[%clk 0:02:42.2]} 11. c5 {[%clk 0:02:41.5]} 11...
dxc5 {[%clk 0:02:32.7]} 12. Bxc5 {[%clk 0:02:41.1]} 12... Qxb3 {[%clk
0:02:20.6]} 13. axb3 {[%clk 0:02:42]} 13... Na6 {[%clk 0:02:11.8]} 14. Ba3
{[%clk 0:02:33]} 14... Rfe8 {[%clk 0:02:07.7]} 15. Nd2 {[%clk 0:02:29.7]} 15...
Nc7 {[%clk 0:02:03.8]} 16. e4 {[%clk 0:02:25.9]} 16... Bd7 {[%clk 0:02:01.7]}
17. Bb2 {[%clk 0:02:24.7]} 17... e5 {[%clk 0:01:56.4]} 18. Nc4 {[%clk
0:02:22.7]} 18... exd4 {[%clk 0:01:56.3]} 19. cxd4 {[%clk 0:02:23.6]} 19... Nb5
{[%clk 0:01:56.7]} 20. Rfd1 {[%clk 0:02:13.3]} 20... Bg4 {[%clk 0:01:53.3]} 21.
Rd2 {[%clk 0:02:10.9]} 21... Red8 {[%clk 0:01:50.2]} 22. h3 {[%clk 0:01:58.2]}
22... Bd7 {[%clk 0:01:45.3]} 23. Kh2 {[%clk 0:01:54.1]} 23... h5 {[%clk
0:01:43.2]} 24. f4 {[%clk 0:01:51.6]} 24... f5 {[%clk 0:01:37.2]} 25. exf5
{[%clk 0:01:43.7]} 25... Bxf5 {[%clk 0:01:26.1]} 26. d5 {[%clk 0:01:43.1]} 26...
Bxb2 {[%clk 0:01:25.6]} 27. Nxb2 {[%clk 0:01:35.4]} 27... cxd5 {[%clk
0:01:23.3]} 28. Rxd5 {[%clk 0:01:31]} 28... Nc3 {[%clk 0:00:48.9]} 29. Rxd8+
{[%clk 0:01:26.4]} 29... Rxd8 {[%clk 0:00:49.8]} 30. Nc4 {[%clk 0:01:25.2]}
30... b5 {[%clk 0:00:46.9]} 31. Ne3 {[%clk 0:01:23.8]} 31... Be4 {[%clk
0:00:42.9]} 32. Rxa7 {[%clk 0:01:21.4]} 32... Rd3 {[%clk 0:00:40.9]} 33. Nf1
{[%clk 0:01:18.2]} 33... Bxg2 {[%clk 0:00:28.6]} 34. Kxg2 {[%clk 0:01:19.1]}
34... Ne4 {[%clk 0:00:28.9]} 35. b4 {[%clk 0:01:13.8]} 35... Rb3 {[%clk
0:00:28.4]} 36. Re7 {[%clk 0:01:13.1]} 36... Rxb4 {[%clk 0:00:23.1]} 37. Ne3
{[%clk 0:01:12.6]} 37... Rb2+ {[%clk 0:00:21.3]} 38. Kf3 {[%clk 0:01:01.5]}
38... Nd2+ {[%clk 0:00:21.2]} 39. Ke2 {[%clk 0:01:01.6]} 39... Nc4+ {[%clk
0:00:21]} 40. Kd3 {[%clk 0:00:58.7]} 40... Rb3+ {[%clk 0:00:19.4]} 41. Kd4
{[%clk 0:00:58.5]} 41... Nxe3 {[%clk 0:00:18.5]} 42. Rxe3 {[%clk 0:00:59.4]}
42... Rxe3 {[%clk 0:00:11.9]} 43. Kxe3 {[%clk 0:01:00.3]} 43... Kf7 {[%clk
0:00:12.2]} 44. Kd4 {[%clk 0:01:00.3]} 44... Ke6 {[%clk 0:00:12.5]} 45. g4
{[%clk 0:01:00.1]} 45... hxg4 {[%clk 0:00:12]} 46. hxg4 {[%clk 0:01:01]} 46...
Kd6 {[%clk 0:00:12.2]} 47. Kc3 {[%clk 0:00:59.4]} 47... Kd5 {[%clk 0:00:11.3]}
48. Kb4 {[%clk 0:00:56.5]} 48... Ke4 {[%clk 0:00:11.3]} 49. f5 {[%clk
0:00:57.1]} 49... gxf5 {[%clk 0:00:12.2]} 50. gxf5 {[%clk 0:00:58]} 50... Kxf5
{[%clk 0:00:13.1]} 51. Kxb5 {[%clk 0:00:58.5]} 1/2-1/2